[Event "December 19 Early 2023"]
[Site "https://www.chess.com"]
[Date "2023.12.19"]
[Round "5"]
[White "Guimaraes, Wagner Peixoto"]
[Black "Kochiev, Ivan"]
[Result "1/2-1/2"]
[Board "156"]
[TimeControl "180+1"]
[WhiteFideId "2100940"]
[BlackFideId "2917890"]
[WhiteElo "2140"]
[BlackElo "2285"]
[WhiteTeam "BRA"]
[BlackTeam "BUL"]
[WhiteClock "0:00:08"]
[BlackClock "0:00:08"]

1. d4 {[%clk 0:02:58]}  Nf6 {[%clk 0:02:59]} 2. Bf4 {[%clk 0:02:57]}  e6 {[%clk 0:02:58]} 3. Nc3 {[%clk 0:02:39]}  d5 {[%clk 0:02:46]} 4. Nb5 {[%clk 0:02:38]}  Na6 {[%clk 0:02:46]} 5. e3 {[%clk 0:02:39]}  c6 {[%clk 0:02:28]} 6. Nc3 {[%clk 0:02:37]}  Bd6 {[%clk 0:02:24]} 7. Nge2 {[%clk 0:02:29]}  O-O {[%clk 0:02:23]} 8. Bxd6 {[%clk 0:02:23]}  Qxd6 {[%clk 0:02:22]} 9. Ng3 {[%clk 0:02:24]}  e5 {[%clk 0:02:12]} 10. dxe5 {[%clk 0:02:17]}  Qxe5 {[%clk 0:02:12]} 11. Bxa6 {[%clk 0:02:09]}  bxa6 {[%clk 0:02:10]} 12. O-O {[%clk 0:02:09]}  Rb8 {[%clk 0:01:59]} 13. Rb1 {[%clk 0:02:08]}  Be6 {[%clk 0:01:54]} 14. Qd4 {[%clk 0:02:07]}  Qd6 {[%clk 0:01:38]} 15. Rfd1 {[%clk 0:01:34]}  Rb4 {[%clk 0:01:23]} 16. Qxa7 {[%clk 0:01:23]}  c5 {[%clk 0:01:08]} 17. a3 {[%clk 0:01:14]}  Rbb8 {[%clk 0:00:48]} 18. Nce4 {[%clk 0:00:52]}  Nxe4 {[%clk 0:00:24]} 19. Nxe4 {[%clk 0:00:53]}  Qe5 {[%clk 0:00:19]} 20. Nxc5 {[%clk 0:00:48]}  Ra8 {[%clk 0:00:18]} 21. Nd3 {[%clk 0:00:41]}  Qg5 {[%clk 0:00:06]} 22. Qd4 {[%clk 0:00:34]}  Rac8 {[%clk 0:00:05]} 23. Qf4 {[%clk 0:00:20]}  Qh5 {[%clk 0:00:03]} 24. Rdc1 {[%clk 0:00:17]}  Rc4 {[%clk 0:00:04]} 25. Qf3 {[%clk 0:00:16]}  Qg6 {[%clk 0:00:04]} 26. Ne5 {[%clk 0:00:14]}  Qh6 {[%clk 0:00:04]} 27. Nxc4 {[%clk 0:00:13]}  dxc4 {[%clk 0:00:05]} 28. Qg3 {[%clk 0:00:12]}  g6 {[%clk 0:00:05]} 29. c3 {[%clk 0:00:12]}  Bf5 {[%clk 0:00:05]} 30. Ra1 {[%clk 0:00:12]}  Qg7 {[%clk 0:00:03]} 31. h4 {[%clk 0:00:10]}  Qf6 {[%clk 0:00:03]} 32. Rd1 {[%clk 0:00:10]}  Bd3 {[%clk 0:00:02]} 33. Rac1 {[%clk 0:00:08]}  a5 {[%clk 0:00:03]} 34. Qf4 {[%clk 0:00:08]}  Qb6 {[%clk 0:00:02]} 35. Rd2 {[%clk 0:00:08]}  a4 {[%clk 0:00:02]} 36. Qd4 {[%clk 0:00:08]}  Qa6 {[%clk 0:00:02]} 37. Rcd1 {[%clk 0:00:07]}  Qa5 {[%clk 0:00:02]} 38. Rxd3 {[%clk 0:00:07]}  cxd3 {[%clk 0:00:03]} 39. Qxd3 {[%clk 0:00:08]}  Rb8 {[%clk 0:00:03]} 40. Qd2 {[%clk 0:00:08]}  Qc5 {[%clk 0:00:03]} 41. g3 {[%clk 0:00:07]}  h5 {[%clk 0:00:03]} 42. Qd6 {[%clk 0:00:07]}  Qb5 {[%clk 0:00:03]} 43. Qd2 {[%clk 0:00:06]}  Qb6 {[%clk 0:00:03]} 44. Kh2 {[%clk 0:00:06]}  Re8 {[%clk 0:00:03]} 45. Re1 {[%clk 0:00:06]}  Qf6 {[%clk 0:00:03]} 46. Kg1 {[%clk 0:00:06]}  Re5 {[%clk 0:00:03]} 47. Qd4 {[%clk 0:00:06]}  Qe6 {[%clk 0:00:03]} 48. Qxa4 {[%clk 0:00:05]}  Rd5 {[%clk 0:00:03]} 49. Qa7 {[%clk 0:00:04]}  Rd2 {[%clk 0:00:02]} 50. Qb8+ {[%clk 0:00:04]}  Kg7 {[%clk 0:00:02]} 51. Qf4 {[%clk 0:00:04]}  Qc6 {[%clk 0:00:02]} 52. Qe5+ {[%clk 0:00:03]}  Kh7 {[%clk 0:00:02]} 53. b4 {[%clk 0:00:03]}  Ra2 {[%clk 0:00:02]} 54. Qd4 {[%clk 0:00:02]}  Qe6 {[%clk 0:00:01]} 55. e4 {[%clk 0:00:03]}  Qb3 {[%clk 0:00:01]} 56. Qe3 {[%clk 0:00:03]}  Qxa3 {[%clk 0:00:02]} 57. Qf3 {[%clk 0:00:03]}  Kg8 {[%clk 0:00:01]} 58. e5 {[%clk 0:00:02]}  Rc2 {[%clk 0:00:02]} 59. e6 {[%clk 0:00:02]}  fxe6 {[%clk 0:00:02]} 60. Qe3 {[%clk 0:00:02]}  Qxc3 {[%clk 0:00:02]} 61. Qxe6+ {[%clk 0:00:02]}  Kh7 {[%clk 0:00:02]} 62. Qe7+ {[%clk 0:00:01]}  Qg7 {[%clk 0:00:02]} 63. Qxg7+ {[%clk 0:00:01]}  Kxg7 {[%clk 0:00:03]} 64. Re4 {[%clk 0:00:02]}  Rc1+ {[%clk 0:00:03]} 65. Kg2 {[%clk 0:00:02]}  Rb1 {[%clk 0:00:03]} 66. Rc4 {[%clk 0:00:02]}  Kf6 {[%clk 0:00:04]} 67. Rc6+ {[%clk 0:00:02]}  Kg7 {[%clk 0:00:04]} 68. Rc4 {[%clk 0:00:02]}  Kh6 {[%clk 0:00:05]} 69. Rf4 {[%clk 0:00:03]}  Rb2 {[%clk 0:00:05]} 70. Kg1 {[%clk 0:00:03]}  Rb1+ {[%clk 0:00:06]} 71. Kg2 {[%clk 0:00:03]}  Rb2 {[%clk 0:00:07]} 72. g4 {[%clk 0:00:04]}  hxg4 {[%clk 0:00:06]} 73. Rxg4 {[%clk 0:00:05]}  Kh5 {[%clk 0:00:07]} 74. Rf4 {[%clk 0:00:05]}  Rb3 {[%clk 0:00:07]} 75. f3 {[%clk 0:00:05]}  Rb2+ {[%clk 0:00:07]} 76. Kg3 {[%clk 0:00:05]}  Rb3 {[%clk 0:00:08]} 77. Rc4 {[%clk 0:00:05]}  Rb1 {[%clk 0:00:09]} 78. Rc5+ {[%clk 0:00:05]}  Kh6 {[%clk 0:00:09]} 79. b5 {[%clk 0:00:06]}  Rg1+ {[%clk 0:00:10]} 80. Kh3 {[%clk 0:00:06]}  Rb1 {[%clk 0:00:11]} 81. Kg4 {[%clk 0:00:06]}  Rh1 {[%clk 0:00:11]} 82. Kg3 {[%clk 0:00:05]}  Rg1+ {[%clk 0:00:12]} 83. Kf2 {[%clk 0:00:05]}  Rb1 {[%clk 0:00:13]} 84. Rg5 {[%clk 0:00:05]}  Rb4 {[%clk 0:00:13]} 85. Kg3 {[%clk 0:00:04]}  Rb1 {[%clk 0:00:13]} 86. f4 {[%clk 0:00:05]}  Rg1+ {[%clk 0:00:13]} 87. Kf3 {[%clk 0:00:05]}  Rh1 {[%clk 0:00:13]} 88. h5 {[%clk 0:00:05]}  gxh5 {[%clk 0:00:09]} 89. Rc5 {[%clk 0:00:06]}  Rb1 {[%clk 0:00:09]} 90. Rc6+ {[%clk 0:00:05]}  Kg7 {[%clk 0:00:09]} 91. b6 {[%clk 0:00:06]}  Rb3+ {[%clk 0:00:07]} 92. Ke4 {[%clk 0:00:06]}  Rb4+ {[%clk 0:00:07]} 93. Kf5 {[%clk 0:00:06]}  h4 {[%clk 0:00:07]} 94. Kg4 {[%clk 0:00:06]}  h3 {[%clk 0:00:06]} 95. Kxh3 {[%clk 0:00:06]}  Rxf4 {[%clk 0:00:06]} 96. Re6 {[%clk 0:00:06]}  Rb4 {[%clk 0:00:06]} 97. Kg3 {[%clk 0:00:06]}  Kf7 {[%clk 0:00:06]} 98. Rc6 {[%clk 0:00:06]}  Ke7 {[%clk 0:00:06]} 99. Kf3 {[%clk 0:00:07]}  Kd7 {[%clk 0:00:06]} 100. Rh6 {[%clk 0:00:07]}  Kc8 {[%clk 0:00:06]} 101. Ke3 {[%clk 0:00:07]}  Kb7 {[%clk 0:00:06]} 102. Kd3 {[%clk 0:00:07]}  Rxb6 {[%clk 0:00:07]} 103. Rxb6+ {[%clk 0:00:08]}  Kxb6 {[%clk 0:00:08]} 1/2-1/2

[Event "December 19 Early 2023"]
[Site "https://www.chess.com"]
[Date "2023.12.19"]
[Round "5"]
[White "Silvestre, Christian"]
[Black "Ljukin, Sergei"]
[Result "0-1"]
[Board "158"]
[TimeControl "180+1"]
[WhiteFideId "30956269"]
[BlackFideId "14102200"]
[WhiteElo "2249"]
[BlackElo "2319"]
[WhiteTeam "USA"]
[BlackTeam "UKR"]
[WhiteClock "0:00:00"]
[BlackClock "0:00:12"]

1. Nf3 {[%clk 0:02:54]}  d5 {[%clk 0:02:59]} 2. d4 {[%clk 0:02:43]}  Nf6 {[%clk 0:02:53]} 3. Bf4 {[%clk 0:02:42]}  c5 {[%clk 0:02:52]} 4. c3 {[%clk 0:02:40]}  Nc6 {[%clk 0:02:52]} 5. e3 {[%clk 0:02:35]}  Qb6 {[%clk 0:02:52]} 6. Qb3 {[%clk 0:02:32]}  c4 {[%clk 0:02:52]} 7. Qxb6 {[%clk 0:02:30]}  axb6 {[%clk 0:02:52]} 8. Nbd2 {[%clk 0:02:30]}  b5 {[%clk 0:02:52]} 9. a3 {[%clk 0:02:25]}  b4 {[%clk 0:02:52]} 10. cxb4 {[%clk 0:02:22]}  Nxb4 {[%clk 0:02:52]} 11. O-O-O {[%clk 0:02:21]}  Bf5 {[%clk 0:02:51]} 12. Nb1 {[%clk 0:02:16]}  Nc6 {[%clk 0:02:18]} 13. Nc3 {[%clk 0:02:13]}  e6 {[%clk 0:02:07]} 14. Ne5 {[%clk 0:02:13]}  Na5 {[%clk 0:01:58]} 15. Re1 {[%clk 0:01:48]}  Be7 {[%clk 0:01:51]} 16. f3 {[%clk 0:01:46]}  Nh5 {[%clk 0:01:41]} 17. g4 {[%clk 0:01:38]}  Nxf4 {[%clk 0:01:28]} 18. exf4 {[%clk 0:01:38]}  Nb3+ {[%clk 0:01:20]} 19. Kd1 {[%clk 0:01:33]}  Bg6 {[%clk 0:01:20]} 20. f5 {[%clk 0:01:31]}  f6 {[%clk 0:00:44]} 21. fxg6 {[%clk 0:01:20]}  fxe5 {[%clk 0:00:44]} 22. Rxe5 {[%clk 0:01:00]}  Nxd4 {[%clk 0:00:41]} 23. Rh5 {[%clk 0:00:43]}  h6 {[%clk 0:00:32]} 24. Bg2 {[%clk 0:00:38]}  O-O {[%clk 0:00:20]} 25. Rf1 {[%clk 0:00:30]}  Bxa3 {[%clk 0:00:18]} 26. bxa3 {[%clk 0:00:28]}  Rxa3 {[%clk 0:00:18]} 27. Nb1 {[%clk 0:00:13]}  Ra2 {[%clk 0:00:17]} 28. Bh1 {[%clk 0:00:13]}  b5 {[%clk 0:00:14]} 29. Nd2 {[%clk 0:00:13]}  c3 {[%clk 0:00:13]} 30. Nb1 {[%clk 0:00:11]}  c2+ {[%clk 0:00:13]} 31. Kc1 {[%clk 0:00:12]}  cxb1=Q+ {[%clk 0:00:11]} 32. Kxb1 {[%clk 0:00:12]}  Re2 {[%clk 0:00:09]} 33. Rh3 {[%clk 0:00:11]}  b4 {[%clk 0:00:08]} 34. f4 {[%clk 0:00:12]}  b3 {[%clk 0:00:06]} 35. Rd3 {[%clk 0:00:12]}  e5 {[%clk 0:00:05]} 36. Bf3 {[%clk 0:00:10]}  Nxf3 {[%clk 0:00:04]} 37. Rdxf3 {[%clk 0:00:11]}  e4 {[%clk 0:00:03]} 38. R3f2 {[%clk 0:00:12]}  Rxf2 {[%clk 0:00:03]} 39. Rxf2 {[%clk 0:00:12]}  e3 {[%clk 0:00:04]} 40. Rb2 {[%clk 0:00:13]}  d4 {[%clk 0:00:05]} 41. Re2 {[%clk 0:00:13]}  d3 {[%clk 0:00:05]} 42. Rxe3 {[%clk 0:00:13]}  Rd8 {[%clk 0:00:05]} 43. Re1 {[%clk 0:00:12]}  d2 {[%clk 0:00:05]} 44. Rd1 {[%clk 0:00:12]}  Rd4 {[%clk 0:00:06]} 45. h3 {[%clk 0:00:09]}  Rd3 {[%clk 0:00:06]} 46. Kb2 {[%clk 0:00:09]}  Kf8 {[%clk 0:00:07]} 47. Ka3 {[%clk 0:00:07]}  Ke7 {[%clk 0:00:07]} 48. Kb4 {[%clk 0:00:07]}  b2 {[%clk 0:00:06]} 49. Kc4 {[%clk 0:00:05]}  b1=Q {[%clk 0:00:07]} 50. Rxb1 {[%clk 0:00:06]}  d1=Q {[%clk 0:00:07]} 51. Rxd1 {[%clk 0:00:05]}  Rxd1 {[%clk 0:00:08]} 52. g5 {[%clk 0:00:05]}  hxg5 {[%clk 0:00:07]} 53. f5 {[%clk 0:00:04]}  Rh1 {[%clk 0:00:08]} 54. Kd5 {[%clk 0:00:04]}  Kf6 {[%clk 0:00:08]} 55. Ke4 {[%clk 0:00:04]}  Rxh3 {[%clk 0:00:09]} 56. Kd4 {[%clk 0:00:04]}  Kxf5 {[%clk 0:00:10]} 57. Kd5 {[%clk 0:00:04]}  Kxg6 {[%clk 0:00:10]} 58. Ke6 {[%clk 0:00:05]}  Rf3 {[%clk 0:00:10]} 59. Ke5 {[%clk 0:00:06]}  Rf6 {[%clk 0:00:10]} 60. Ke4 {[%clk 0:00:07]}  g4 {[%clk 0:00:11]} 61. Ke5 {[%clk 0:00:08]}  g3 {[%clk 0:00:11]} 62. Ke4 {[%clk 0:00:09]}  g2 {[%clk 0:00:12]} 63. Ke3 {[%clk 0:00:10]}  g1=Q+ {[%clk 0:00:12]} 64. Ke4 {[%clk 0:00:00]}  Qg5 {[%clk 0:00:12]} 0-1

[Event "December 19 Early 2023"]
[Site "https://www.chess.com"]
[Date "2023.12.19"]
[Round "5"]
[White "Manukyan, Sargis V."]
[Black "Deveci, Huseyin Said"]
[Result "1-0"]
[Board "159"]
[TimeControl "180+1"]
[WhiteFideId "13303465"]
[BlackFideId "26322455"]
[WhiteElo "2236"]
[BlackElo "1954"]
[WhiteTeam "ARM"]
[BlackTeam "TUR"]
[WhiteClock "0:02:17"]
[BlackClock "0:02:14"]

1. d4 {[%clk 0:03:00]}  d5 {[%clk 0:03:00]} 2. Nf3 {[%clk 0:03:01]}  Nf6 {[%clk 0:02:59]} 3. c4 {[%clk 0:02:57]}  c6 {[%clk 0:03:00]} 4. e3 {[%clk 0:02:57]}  e6 {[%clk 0:02:57]} 5. Nc3 {[%clk 0:02:56]}  Nbd7 {[%clk 0:02:58]} 6. Qc2 {[%clk 0:02:55]}  dxc4 {[%clk 0:02:50]} 7. Bxc4 {[%clk 0:02:55]}  b5 {[%clk 0:02:50]} 8. Bd3 {[%clk 0:02:55]}  b4 {[%clk 0:02:50]} 9. Ne4 {[%clk 0:02:52]}  Bb7 {[%clk 0:02:51]} 10. O-O {[%clk 0:02:51]}  Be7 {[%clk 0:02:50]} 11. a3 {[%clk 0:02:48]}  a5 {[%clk 0:02:47]} 12. axb4 {[%clk 0:02:45]}  axb4 {[%clk 0:02:48]} 13. Rxa8 {[%clk 0:02:44]}  Qxa8 {[%clk 0:02:48]} 14. Bd2 {[%clk 0:02:31]}  O-O {[%clk 0:02:47]} 15. Nc5 {[%clk 0:02:28]}  Nxc5 {[%clk 0:02:47]} 16. dxc5 {[%clk 0:02:29]}  Rd8 {[%clk 0:02:31]} 17. Bxb4 {[%clk 0:02:21]}  Rxd3 {[%clk 0:02:19]} 18. Qxd3 {[%clk 0:02:20]}  Ba6 {[%clk 0:02:14]} 19. Qa3 {[%clk 0:02:17]} 1-0

[Event "December 19 Early 2023"]
[Site "https://www.chess.com"]
[Date "2023.12.19"]
[Round "5"]
[White "Cramling Bellon, Anna"]
[Black "Lacasa Diaz, Josep Anton"]
[Result "0-1"]
[Board "161"]
[TimeControl "180+1"]
[WhiteFideId "32009232"]
[BlackFideId "2203375"]
[WhiteElo "1976"]
[BlackElo "2338"]
[WhiteTeam "SWE"]
[BlackTeam "ESP"]
[WhiteClock "0:00:00"]
[BlackClock "0:00:14"]

1. d4 {[%clk 0:03:00]}  d5 {[%clk 0:02:56]} 2. c4 {[%clk 0:02:57]}  e6 {[%clk 0:02:54]} 3. Nc3 {[%clk 0:02:55]}  c5 {[%clk 0:02:54]} 4. e3 {[%clk 0:02:55]}  Nf6 {[%clk 0:02:52]} 5. cxd5 {[%clk 0:02:43]}  exd5 {[%clk 0:02:51]} 6. Nf3 {[%clk 0:02:42]}  Nc6 {[%clk 0:02:51]} 7. g3 {[%clk 0:02:40]}  Bg4 {[%clk 0:02:36]} 8. Bg2 {[%clk 0:02:40]}  cxd4 {[%clk 0:02:33]} 9. exd4 {[%clk 0:02:39]}  Be7 {[%clk 0:02:33]} 10. O-O {[%clk 0:02:39]}  O-O {[%clk 0:02:33]} 11. Re1 {[%clk 0:02:23]}  Re8 {[%clk 0:02:21]} 12. h3 {[%clk 0:02:23]}  Bf5 {[%clk 0:02:21]} 13. Bg5 {[%clk 0:02:00]}  Ne4 {[%clk 0:02:06]} 14. Bxe7 {[%clk 0:01:52]}  Rxe7 {[%clk 0:02:07]} 15. Nh4 {[%clk 0:01:47]}  Nxc3 {[%clk 0:01:59]} 16. bxc3 {[%clk 0:01:48]}  Be6 {[%clk 0:01:53]} 17. f4 {[%clk 0:01:42]}  Qd7 {[%clk 0:01:41]} 18. g4 {[%clk 0:00:52]}  f6 {[%clk 0:01:41]} 19. Qd3 {[%clk 0:00:42]}  Rae8 {[%clk 0:01:39]} 20. Re3 {[%clk 0:00:19]}  Bf7 {[%clk 0:01:17]} 21. Rae1 {[%clk 0:00:19]}  Rxe3 {[%clk 0:01:17]} 22. Rxe3 {[%clk 0:00:19]}  Rxe3 {[%clk 0:01:14]} 23. Qxe3 {[%clk 0:00:20]}  Be6 {[%clk 0:00:55]} 24. Nf5 {[%clk 0:00:09]}  Bxf5 {[%clk 0:00:32]} 25. gxf5 {[%clk 0:00:10]}  Kf8 {[%clk 0:00:32]} 26. Qe6 {[%clk 0:00:09]}  Qxe6 {[%clk 0:00:27]} 27. fxe6 {[%clk 0:00:10]}  Ne7 {[%clk 0:00:24]} 28. Kf2 {[%clk 0:00:04]}  b6 {[%clk 0:00:24]} 29. Ke2 {[%clk 0:00:02]}  f5 {[%clk 0:00:23]} 30. Kd3 {[%clk 0:00:02]}  g6 {[%clk 0:00:17]} 31. c4 {[%clk 0:00:02]}  Kg7 {[%clk 0:00:16]} 32. cxd5 {[%clk 0:00:02]}  Nc8 {[%clk 0:00:16]} 33. Kc4 {[%clk 0:00:01]}  Nd6+ {[%clk 0:00:16]} 34. Kb4 {[%clk 0:00:01]}  Kf6 {[%clk 0:00:16]} 35. a4 {[%clk 0:00:01]}  Ke7 {[%clk 0:00:17]} 36. a5 {[%clk 0:00:02]}  Kd8 {[%clk 0:00:17]} 37. axb6 {[%clk 0:00:02]}  axb6 {[%clk 0:00:16]} 38. Kc3 {[%clk 0:00:02]}  Ke7 {[%clk 0:00:17]} 39. Kb4 {[%clk 0:00:02]}  h6 {[%clk 0:00:18]} 40. h4 {[%clk 0:00:02]}  Kf6 {[%clk 0:00:17]} 41. Kc3 {[%clk 0:00:01]}  g5 {[%clk 0:00:18]} 42. hxg5+ {[%clk 0:00:02]}  hxg5 {[%clk 0:00:19]} 43. fxg5+ {[%clk 0:00:02]}  Kxg5 {[%clk 0:00:19]} 44. e7 {[%clk 0:00:02]}  Kf6 {[%clk 0:00:18]} 45. Kd3 {[%clk 0:00:02]}  Kxe7 {[%clk 0:00:18]} 46. Ke3 {[%clk 0:00:03]}  Kf6 {[%clk 0:00:18]} 47. Kf4 {[%clk 0:00:03]}  Kg6 {[%clk 0:00:19]} 48. Bh3 {[%clk 0:00:03]}  Kf6 {[%clk 0:00:19]} 49. Bg2 {[%clk 0:00:03]}  b5 {[%clk 0:00:20]} 50. Bf1 {[%clk 0:00:03]}  b4 {[%clk 0:00:20]} 51. Bd3 {[%clk 0:00:04]}  b3 {[%clk 0:00:21]} 52. Bb1 {[%clk 0:00:04]}  b2 {[%clk 0:00:20]} 53. Bd3 {[%clk 0:00:04]}  Ke7 {[%clk 0:00:17]} 54. Ke5 {[%clk 0:00:03]}  Kd7 {[%clk 0:00:16]} 55. Bb1 {[%clk 0:00:02]}  Kc7 {[%clk 0:00:17]} 56. Ke6 {[%clk 0:00:02]}  f4 {[%clk 0:00:13]} 57. Ke5 {[%clk 0:00:01]}  f3 {[%clk 0:00:14]} 58. Kf4 {[%clk 0:00:00]}  f2 {[%clk 0:00:14]} 0-1

[Event "December 19 Early 2023"]
[Site "https://www.chess.com"]
[Date "2023.12.19"]
[Round "5"]
[White "Caruana, Fabiano"]
[Black "Filippova, Margarita"]
[Result "1-0"]
[Board "164"]
[TimeControl "180+1"]
[WhiteFideId "2020009"]
[BlackFideId "34199680"]
[WhiteElo "2815"]
[BlackElo "1916"]
[WhiteTeam "USA"]
[BlackTeam "RUS"]
[WhiteClock "0:01:52"]
[BlackClock "0:01:10"]

1. d3 {[%clk 0:03:00]}  d5 {[%clk 0:02:53]} 2. f4 {[%clk 0:02:58]}  c5 {[%clk 0:02:52]} 3. Nf3 {[%clk 0:02:58]}  Nc6 {[%clk 0:02:52]} 4. g3 {[%clk 0:02:58]}  g6 {[%clk 0:02:51]} 5. Bg2 {[%clk 0:02:58]}  Bg7 {[%clk 0:02:52]} 6. O-O {[%clk 0:02:59]}  Nf6 {[%clk 0:02:46]} 7. Qe1 {[%clk 0:02:57]}  Qc7 {[%clk 0:02:42]} 8. e4 {[%clk 0:02:57]}  dxe4 {[%clk 0:02:42]} 9. dxe4 {[%clk 0:02:58]}  Bg4 {[%clk 0:02:40]} 10. e5 {[%clk 0:02:55]}  Nd5 {[%clk 0:02:40]} 11. c3 {[%clk 0:02:54]}  e6 {[%clk 0:02:39]} 12. Nbd2 {[%clk 0:02:53]}  h5 {[%clk 0:02:27]} 13. Ne4 {[%clk 0:02:49]}  Bf8 {[%clk 0:02:23]} 14. c4 {[%clk 0:02:47]}  Nb6 {[%clk 0:02:17]} 15. Nf6+ {[%clk 0:02:46]}  Ke7 {[%clk 0:02:16]} 16. Be3 {[%clk 0:02:45]}  Nd7 {[%clk 0:02:13]} 17. Ng5 {[%clk 0:02:38]}  Nxf6 {[%clk 0:02:09]} 18. exf6+ {[%clk 0:02:39]}  Ke8 {[%clk 0:02:05]} 19. Kh1 {[%clk 0:02:14]}  Bh6 {[%clk 0:01:59]} 20. Bxc5 {[%clk 0:02:11]}  Bxg5 {[%clk 0:01:59]} 21. fxg5 {[%clk 0:02:12]}  h4 {[%clk 0:01:54]} 22. gxh4 {[%clk 0:02:12]}  Rd8 {[%clk 0:01:47]} 23. b4 {[%clk 0:02:07]}  b6 {[%clk 0:01:45]} 24. Qg3 {[%clk 0:02:00]}  Qd7 {[%clk 0:01:21]} 25. Be7 {[%clk 0:01:55]}  Bf5 {[%clk 0:01:17]} 26. Bxd8 {[%clk 0:01:53]}  Nxd8 {[%clk 0:01:18]} 27. Rad1 {[%clk 0:01:53]}  Qc8 {[%clk 0:01:15]} 28. Qd6 {[%clk 0:01:52]}  Nc6 {[%clk 0:01:10]} 29. Bxc6+ {[%clk 0:01:51]}  Qxc6+ {[%clk 0:01:10]} 30. Qxc6+ {[%clk 0:01:52]} 1-0

[Event "December 19 Early 2023"]
[Site "https://www.chess.com"]
[Date "2023.12.19"]
[Round "5"]
[White "Rushbrooke, Remy"]
[Black "Skatchkov, Valery"]
[Result "1-0"]
[Board "166"]
[TimeControl "180+1"]
[WhiteFideId "443590"]
[BlackFideId "24195812"]
[WhiteElo "1942"]
[BlackElo "2320"]
[WhiteTeam "ENG"]
[BlackTeam "RUS"]
[WhiteClock "0:01:40"]
[BlackClock "0:01:06"]

1. d4 {[%clk 0:02:57]}  Nf6 {[%clk 0:02:59]} 2. Nc3 {[%clk 0:02:58]}  e6 {[%clk 0:03:00]} 3. e4 {[%clk 0:02:58]}  d5 {[%clk 0:02:59]} 4. Bg5 {[%clk 0:02:58]}  Bb4 {[%clk 0:02:48]} 5. e5 {[%clk 0:02:54]}  h6 {[%clk 0:02:48]} 6. Bc1 {[%clk 0:02:55]}  Nfd7 {[%clk 0:02:46]} 7. Qg4 {[%clk 0:02:54]}  Kf8 {[%clk 0:02:46]} 8. a3 {[%clk 0:02:42]}  Bxc3+ {[%clk 0:02:45]} 9. bxc3 {[%clk 0:02:43]}  c5 {[%clk 0:02:46]} 10. h4 {[%clk 0:02:44]}  Nc6 {[%clk 0:02:45]} 11. Rh3 {[%clk 0:02:43]}  h5 {[%clk 0:02:38]} 12. Qf4 {[%clk 0:02:42]}  Qa5 {[%clk 0:02:37]} 13. Bd2 {[%clk 0:02:41]}  Rh6 {[%clk 0:02:00]} 14. Rf3 {[%clk 0:02:27]}  Nd8 {[%clk 0:02:00]} 15. Nh3 {[%clk 0:02:26]}  Qc7 {[%clk 0:01:48]} 16. Qg3 {[%clk 0:02:19]}  Rh8 {[%clk 0:01:43]} 17. Bd3 {[%clk 0:02:03]}  Kg8 {[%clk 0:01:31]} 18. Bg5 {[%clk 0:01:50]}  Nf8 {[%clk 0:01:13]} 19. Bf6 {[%clk 0:01:49]}  Ng6 {[%clk 0:01:10]} 20. Bxg6 {[%clk 0:01:44]}  fxg6 {[%clk 0:01:10]} 21. Qxg6 {[%clk 0:01:43]}  Rh6 {[%clk 0:01:06]} 22. Qe8+ {[%clk 0:01:40]} 1-0

[Event "December 19 Early 2023"]
[Site "https://www.chess.com"]
[Date "2023.12.19"]
[Round "5"]
[White "Souleidis, Georgios"]
[Black "Marinakis, Hristos"]
[Result "1-0"]
[Board "167"]
[TimeControl "180+1"]
[WhiteFideId "4206827"]
[BlackFideId "4294661"]
[WhiteElo "2401"]
[BlackElo "2300"]
[WhiteTeam "GRE"]
[BlackTeam "GRE"]
[WhiteClock "0:00:08"]
[BlackClock "0:00:02"]

1. e4 {[%clk 0:03:00]}  c5 {[%clk 0:02:58]} 2. Nf3 {[%clk 0:03:00]}  d6 {[%clk 0:02:55]} 3. Bc4 {[%clk 0:03:00]}  Nf6 {[%clk 0:02:52]} 4. d3 {[%clk 0:03:00]}  e6 {[%clk 0:02:50]} 5. O-O {[%clk 0:03:00]}  Be7 {[%clk 0:02:50]} 6. Bb3 {[%clk 0:02:59]}  O-O {[%clk 0:02:50]} 7. c3 {[%clk 0:02:59]}  Nc6 {[%clk 0:02:45]} 8. Re1 {[%clk 0:02:59]}  e5 {[%clk 0:02:35]} 9. h3 {[%clk 0:02:55]}  b5 {[%clk 0:02:32]} 10. a4 {[%clk 0:02:48]}  b4 {[%clk 0:02:32]} 11. d4 {[%clk 0:02:48]}  cxd4 {[%clk 0:01:49]} 12. cxd4 {[%clk 0:02:48]}  Bb7 {[%clk 0:01:49]} 13. Bg5 {[%clk 0:02:44]}  h6 {[%clk 0:01:40]} 14. Bxf6 {[%clk 0:02:44]}  Bxf6 {[%clk 0:01:40]} 15. d5 {[%clk 0:02:43]}  Nd4 {[%clk 0:01:28]} 16. Nxd4 {[%clk 0:02:39]}  exd4 {[%clk 0:01:29]} 17. Nd2 {[%clk 0:02:38]}  Ba6 {[%clk 0:01:11]} 18. Bc4 {[%clk 0:02:32]}  Bb7 {[%clk 0:01:07]} 19. a5 {[%clk 0:02:27]}  Rc8 {[%clk 0:00:58]} 20. Qb3 {[%clk 0:02:14]}  Ba8 {[%clk 0:00:48]} 21. Qxb4 {[%clk 0:02:09]}  d3 {[%clk 0:00:41]} 22. Qa3 {[%clk 0:01:41]}  Bd4 {[%clk 0:00:32]} 23. Qxd3 {[%clk 0:01:25]}  Bxb2 {[%clk 0:00:17]} 24. Ra2 {[%clk 0:01:25]}  Be5 {[%clk 0:00:15]} 25. Nf3 {[%clk 0:01:21]}  Qf6 {[%clk 0:00:12]} 26. Nxe5 {[%clk 0:01:09]}  Qxe5 {[%clk 0:00:13]} 27. Rc2 {[%clk 0:01:08]}  Rc5 {[%clk 0:00:12]} 28. a6 {[%clk 0:01:06]}  Rfc8 {[%clk 0:00:11]} 29. Rec1 {[%clk 0:01:06]}  g6 {[%clk 0:00:06]} 30. Bb5 {[%clk 0:00:55]}  Rxc2 {[%clk 0:00:05]} 31. Rxc2 {[%clk 0:00:56]}  Rb8 {[%clk 0:00:04]} 32. g3 {[%clk 0:00:47]}  Kg7 {[%clk 0:00:03]} 33. Kg2 {[%clk 0:00:45]}  f5 {[%clk 0:00:02]} 34. Rc7+ {[%clk 0:00:23]}  Kf6 {[%clk 0:00:02]} 35. Bc6 {[%clk 0:00:18]}  fxe4 {[%clk 0:00:01]} 36. Qe3 {[%clk 0:00:18]}  Bxc6 {[%clk 0:00:01]} 37. dxc6 {[%clk 0:00:15]}  Rb6 {[%clk 0:00:01]} 38. Qxh6 {[%clk 0:00:08]}  d5 {[%clk 0:00:01]} 39. Qh8+ {[%clk 0:00:07]}  Ke6 {[%clk 0:00:01]} 40. Re7+ {[%clk 0:00:07]}  Kxe7 {[%clk 0:00:02]} 41. Qxe5+ {[%clk 0:00:07]}  Kd8 {[%clk 0:00:03]} 42. Qxd5+ {[%clk 0:00:08]}  Kc7 {[%clk 0:00:02]} 43. Qd7+ {[%clk 0:00:08]} 1-0